bitfinex-derivatives/quotes_BTCF0:USTF0_20210703
["timestamp","ask_amount","ask_price","bid_price","bid_amount"]
[1625312207060,0.24452194,34428.0,34427.0,5.26009365]
[1625312207311,0.24452194,34428.0,34427.0,5.17309365]
[1625312207511,1.36361425,34432.0,34427.0,6.71923393]
[1625312207813,1.36361425,34432.0,34428.0,0.00546764]
[1625312207914,1.36361425,34432.0,34428.0,0.40149764]
[1625312208117,1.36361425,34432.0,34430.0,1.27105038]
[1625312208215,1.36361425,34432.0,34430.0,1.38905038]
[1625312208316,1.36361425,34432.0,34431.0,0.00546764]
[1625312208718,1.36361425,34432.0,34431.0,0.06446764]
[1625312209572,1.36361425,34432.0,34431.0,0.30504308]
[1625312218043,2.89263349,34432.0,34431.0,0.30504308]
[1625312218497,1.36361425,34432.0,34431.0,0.30504308]
[1625312219945,1.36361425,34432.0,34431.0,0.36404308]
[1625312220146,1.36361425,34432.0,34431.0,0.30504308]
[1625312220701,1.36361425,34432.0,34431.0,0.36404308]
[1625312222351,1.36361425,34432.0,34431.0,0.30504308]
[1625312223658,1.36361425,34432.0,34431.0,0.36404308]
[1625312223907,2.55348995,34432.0,34431.0,1.50725443]
[1625312224660,2.55348995,34432.0,34431.0,1.56625443]
[1625312225208,1.1898757,34432.0,34431.0,1.56625443]
[1625312225610,2.54965375,34432.0,34431.0,1.56625443]
[1625312226165,1.1898757,34432.0,34431.0,1.56625443]
[1625312234931,3.57506122,34432.0,34431.0,2.59667329]
[1625312242253,3.57506122,34432.0,34431.0,3.9706775]
[1625312242254,2.2121224,34432.0,34431.0,3.9706775]
[1625312242702,2.2121224,34432.0,34431.0,2.59667329]
[1625312242802,2.2121224,34432.0,34431.0,2.82304329]
[1625312243153,2.2121224,34432.0,34431.0,4.19709272]
[1625312243608,2.2121224,34432.0,34431.0,2.82304329]
[1625312245011,2.2121224,34432.0,34431.0,2.76404329]
[1625312245109,2.2121224,34432.0,34431.0,2.53767329]
[1625312245760,3.57448181,34432.0,34431.0,2.53767329]
[1625312247113,3.77427181,34432.0,34431.0,2.47867329]
[1625312247613,3.77427181,34432.0,34431.0,1.27646194]
[1625312248063,3.77427181,34432.0,34431.0,1.33546194]
[1625312248164,3.57448181,34432.0,34431.0,1.60988795]
[1625312248265,3.57448181,34432.0,34431.0,1.66888795]
[1625312248365,3.33958181,34432.0,34431.0,2.10988795]
[1625312248464,2.87998181,34432.0,34431.0,2.10988795]
[1625312248565,2.83618181,34432.0,34431.0,2.16888795]
[1625312248666,2.74928181,34432.0,34431.0,2.10988795]
[1625312248769,0.87928085,34433.0,34431.0,6.23275209]
[1625312248868,0.79728085,34433.0,34431.0,5.73275209]
[1625312249066,0.76018085,34433.0,34431.0,5.73275209]
[1625312249220,0.08550748,34436.0,34432.0,4.6488553]
[1625312249372,0.05740748,34436.0,34432.0,4.7078553]
[1625312249518,0.05740748,34436.0,34433.0,0.01407337]
[1625312249626,0.05740748,34436.0,34433.0,0.13207337]
[1625312249769,0.51253626,34438.0,34435.0,2.91819148]
[1625312249872,0.51253626,34438.0,34437.0,0.72172632]
[1625312249969,0.51253626,34438.0,34437.0,0.83972632]
[1625312250271,0.51253626,34438.0,34437.0,0.85379748]
[1625312250520,0.45574013,34440.0,34437.0,3.77182599]
[1625312250821,0.45574013,34440.0,34438.0,0.00546837]
[1625312250921,0.39674013,34440.0,34438.0,0.27737837]
[1625312251122,0.34178799,34444.0,34439.0,2.91423862]
[1625312251274,0.34178799,34444.0,34439.0,3.03223862]
[1625312251424,1.36663954,34450.0,34443.0,1.37123282]
[1625312251522,1.36781683,34454.0,34443.0,3.08886974]
[1625312251872,1.36781683,34454.0,34453.0,0.94759632]
[1625312251972,1.36781683,34454.0,34453.0,1.00659632]
[1625312252171,1.36781683,34454.0,34453.0,1.01206388]
[1625312252523,1.36827579,34455.0,34453.0,1.01206388]
[1625312252973,1.36827579,34455.0,34454.0,0.0054675]
[1625312253076,1.36640599,34457.0,34454.0,0.0644675]
[1625312253426,1.36640599,34457.0,34455.0,0.0054675]
[1625312253628,1.36640599,34457.0,34455.0,0.0644675]
[1625312253978,1.36640599,34457.0,34455.0,0.059]
[1625312254228,1.36640599,34457.0,34456.0,0.00546744]
[1625312254329,1.36640599,34457.0,34456.0,0.06446744]
[1625312254779,1.36640599,34457.0,34456.0,0.059]
[1625312255380,0.24057544,34458.0,34456.0,0.059]
[1625312255832,0.24057544,34458.0,34457.0,0.13736013]
[1625312255930,0.24057544,34458.0,34457.0,0.19636013]
[1625312257535,1.36537145,34460.0,34457.0,0.19636013]
[1625312257787,1.60483224,34461.0,34457.0,0.19636013]
[1625312257884,1.60483224,34461.0,34460.0,0.24057544]
[1625312258187,1.60483224,34461.0,34460.0,0.29957544]
[1625312258286,0.24057544,34461.0,34460.0,0.29957544]
[1625312258386,0.24057544,34461.0,34460.0,0.49213544]
[1625312260541,0.24057544,34461.0,34460.0,0.29957544]
[1625312263547,0.92239396,34461.0,34460.0,0.29957544]
[1625312264504,1.13647396,34461.0,34460.0,0.29957544]
[1625312264602,1.19547396,34461.0,34460.0,0.24057544]
[1625312265603,1.13647396,34461.0,34460.0,0.24057544]
[1625312265707,2.49762325,34461.0,34460.0,0.24057544]
[1625312266858,2.61562325,34461.0,34460.0,0.24057544]
[1625312267207,2.55662325,34461.0,34460.0,0.24057544]
[1625312267307,2.61562325,34461.0,34460.0,0.24057544]
[1625312267408,2.55662325,34461.0,34460.0,0.24057544]
[1625312269364,3.74671265,34461.0,34460.0,0.24057544]
[1625312272474,2.38556336,34461.0,34460.0,0.24057544]
[1625312273527,2.44456336,34461.0,34460.0,0.24057544]
[1625312273775,2.38556336,34461.0,34460.0,0.24057544]
[1625312273876,2.44456336,34461.0,34460.0,0.24057544]
[1625312273976,2.38556336,34461.0,34460.0,0.24057544]
[1625312274077,3.74556534,34461.0,34460.0,0.24057544]
[1625312274378,3.68656534,34461.0,34460.0,0.24057544]
[1625312274478,3.68656534,34461.0,34460.0,0.49672544]
[1625312275030,3.47248534,34461.0,34460.0,0.55572544]
[1625312275130,2.11248336,34461.0,34460.0,0.61472544]
[1625312275429,2.11248336,34461.0,34460.0,0.62019978]
[1625312275731,0.24057544,34461.0,34460.0,0.62019978]
[1625312275982,0.68129236,34463.0,34460.0,0.62019978]
[1625312276431,0.68153322,34464.0,34460.0,0.62019978]
[1625312276531,0.68153322,34464.0,34460.0,0.61472544]
[1625312276784,0.68153322,34464.0,34461.0,0.00547586]
[1625312276930,0.68153322,34464.0,34461.0,0.12347586]
[1625312277282,0.68153322,34464.0,34462.0,0.00547586]
[1625312277832,0.68153322,34464.0,34461.0,0.00547597]
[1625312277932,0.68153322,34464.0,34461.0,0.12347597]
[1625312278032,0.68153322,34464.0,34463.0,0.24057544]
[1625312278334,0.68153322,34464.0,34463.0,0.24605145]
[1625312279889,1.70324246,34464.0,34463.0,0.24605145]
[1625312279990,1.70324246,34464.0,34463.0,0.30505145]
[1625312280286,1.70324246,34464.0,34463.0,0.29957544]
[1625312280439,0.68153322,34464.0,34463.0,0.29957544]
[1625312280538,0.68153322,34464.0,34463.0,0.30505117]
[1625312280941,0.68136442,34465.0,34463.0,0.30505117]
[1625312281288,0.68136442,34465.0,34464.0,0.00547571]
[1625312281440,0.68136442,34465.0,34464.0,0.06447571]
[1625312285445,1.70132253,34465.0,34464.0,0.06447571]
[1625312286248,1.70132253,34465.0,34464.0,0.00547571]
[1625312286497,1.97522253,34465.0,34464.0,0.00547571]
[1625312286898,1.97522253,34465.0,34461.0,0.00547621]
[1625312286999,2.09322253,34465.0,34461.0,0.00547621]
[1625312287099,2.10529923,34465.0,34460.0,0.24057544]
[1625312287401,2.88327521,34462.0,34460.0,0.24057544]
[1625312287500,2.94227521,34462.0,34460.0,0.24057544]
[1625312287598,3.00127521,34462.0,34460.0,0.24057544]
[1625312287949,0.01207735,34461.0,34460.0,0.24057544]
[1625312288100,4.54985661,34461.0,34460.0,0.24057544]
[1625312288199,4.60885661,34461.0,34460.0,0.24057544]
[1625312290205,6.13442303,34461.0,34460.0,0.24057544]
[1625312290805,4.60885661,34461.0,34460.0,0.24057544]
[1625312291154,6.13383816,34461.0,34460.0,0.24057544]
[1625312291254,6.13383816,34461.0,34451.0,0.24057544]
[1625312291708,1.18591761,34455.0,34452.0,0.00547936]
[1625312291807,1.01652501,34453.0,34452.0,0.00547936]
[1625312291907,1.07552501,34453.0,34452.0,0.00547936]
[1625312292157,2.23422503,34453.0,34452.0,0.00547936]
[1625312293361,2.17522503,34453.0,34452.0,0.00547936]
[1625312294169,1.15870002,34453.0,34452.0,0.00547936]
[1625312294519,0.98996106,34453.0,34452.0,0.00547936]
[1625312295469,1.66857656,34453.0,34452.0,0.00547936]
[1625312296726,2.68648863,34453.0,34452.0,0.00547936]
[1625312298377,2.98280863,34453.0,34452.0,0.00547936]
[1625312300431,4.1710536,34453.0,34452.0,0.00547936]
[1625312303589,5.53043922,34453.0,34452.0,0.00547936]
[1625312306793,4.85182372,34453.0,34452.0,0.00547936]
[1625312307194,5.53306194,34453.0,34452.0,0.00547936]
[1625312307294,5.53306194,34453.0,34452.0,0.23069936]
[1625312307394,5.23674194,34453.0,34452.0,0.28969936]
[1625312307695,5.23674194,34453.0,34452.0,0.34869936]
[1625312308096,5.23674194,34453.0,34452.0,0.86267898]
[1625312308747,0.48115088,34453.0,34452.0,5.14536471]
[1625312309247,0.99341534,34453.0,34452.0,5.14536471]
[1625312309549,1.67638006,34453.0,34452.0,5.14536471]
[1625312312002,1.67638006,34453.0,34452.0,5.13988535]
[1625312312254,1.67638006,34453.0,34452.0,5.1453606]
[1625312312354,1.67638006,34453.0,34452.0,5.0863606]
[1625312312455,1.67638006,34453.0,34452.0,5.1453606]
[1625312313155,1.67638006,34453.0,34452.0,5.0863606]
[1625312313357,1.67638006,34453.0,34452.0,5.1739606]
[1625312313456,1.67638006,34453.0,34452.0,5.0863606]
[1625312314615,2.70066851,34453.0,34452.0,3.71590117]
[1625312315719,2.70066851,34453.0,34452.0,5.08705333]
[1625312316223,2.70066851,34453.0,34452.0,5.14605333]
[1625312316319,1.67638006,34453.0,34452.0,5.23285333]
[1625312316421,1.67638006,34453.0,34452.0,5.14605333]
[1625312319374,0.99341534,34453.0,34452.0,5.14605333]
[1625312319825,0.48115088,34453.0,34452.0,5.14605333]
[1625312321832,0.48115088,34453.0,34452.0,5.08705333]
[1625312321932,0.73405088,34453.0,34452.0,4.86183333]
[1625312322036,0.79305088,34453.0,34452.0,4.80283333]
[1625312322488,5.56707005,34453.0,34452.0,1.20468459]
[1625312323087,7.1001897,34453.0,34452.0,0.00547525]
[1625312323589,7.1001897,34453.0,34450.0,0.00547656]
[1625312324290,5.00978933,34451.0,34450.0,0.00547656]
[1625312325443,5.00978933,34451.0,34450.0,0.51967517]
[1625312327048,5.00978933,34451.0,34450.0,1.20522061]
[1625312328203,3.64722978,34451.0,34450.0,1.20522061]
[1625312330956,5.00641911,34451.0,34450.0,0.51967517]
[1625312333311,5.00641911,34451.0,34450.0,0.00547656]
[1625312335415,3.64722978,34451.0,34450.0,0.51955483]
[1625312335765,3.64722978,34451.0,34450.0,1.20498676]
[1625312336315,3.64722978,34451.0,34450.0,1.26398676]
[1625312336415,3.64722978,34451.0,34450.0,1.5045622]
[1625312336871,2.45496888,34451.0,34450.0,2.53266653]
[1625312337267,2.45496888,34451.0,34450.0,2.47366653]
[1625312337618,1.43300664,34451.0,34450.0,3.67321503]
[1625312338068,2.4533639,34451.0,34450.0,2.47366653]
[1625312339120,2.4533639,34451.0,34450.0,3.67340248]
[1625312340978,2.4533639,34451.0,34450.0,3.73240248]
[1625312343029,2.4533639,34451.0,34450.0,3.67340248]
[1625312343480,3.64446259,34451.0,34450.0,2.47366653]
[1625312344486,5.00574058,34451.0,34450.0,2.47366653]
[1625312349949,5.06474058,34451.0,34450.0,2.47366653]
[1625312352708,5.00574058,34451.0,34450.0,2.47366653]
[1625312356562,5.00574058,34451.0,34450.0,2.71631653]
[1625312357615,5.00574058,34451.0,34450.0,2.77531653]
[1625312357816,5.00574058,34451.0,34450.0,2.71631653]
[1625312357914,5.00574058,34451.0,34450.0,3.97630675]
[1625312357915,3.64446259,34451.0,34450.0,3.97630675]
[1625312358014,3.64446259,34451.0,34450.0,3.91730675]
[1625312358114,3.64446259,34451.0,34450.0,3.97630675]
[1625312358414,3.64446259,34451.0,34450.0,3.91730675]
[1625312359066,3.64446259,34451.0,34450.0,3.97630675]
[1625312359517,3.64446259,34451.0,34450.0,3.91730675]
[1625312359618,3.64446259,34451.0,34450.0,3.97630675]
[1625312360720,3.64446259,34451.0,34450.0,4.03530675]
[1625312360869,3.64446259,34451.0,34450.0,3.97630675]
[1625312363376,3.64446259,34451.0,34450.0,5.34894431]
[1625312364380,2.4533639,34451.0,34450.0,5.34894431]
[1625312366533,3.64645966,34451.0,34450.0,5.34894431]
[1625312367084,2.4533639,34451.0,34450.0,5.34894431]
[1625312368136,3.64622768,34451.0,34450.0,5.34894431]
[1625312369493,3.64622768,34451.0,34450.0,3.97630675]
[1625312369993,5.00919899,34451.0,34450.0,3.97630675]
[1625312371898,5.00919899,34451.0,34450.0,4.06340675]
[1625312372498,5.00919899,34451.0,34450.0,3.97630675]
[1625312373853,3.64622768,34451.0,34450.0,3.97630675]
[1625312374453,3.64622768,34451.0,34450.0,5.34953604]
[1625312376260,5.00989102,34451.0,34450.0,3.97630675]
[1625312380016,5.00989102,34451.0,34450.0,5.35035564]
[1625312387532,5.00989102,34451.0,34450.0,5.29135564]
[1625312387884,5.00989102,34451.0,34450.0,5.35035564]
[1625312388489,5.20051102,34451.0,34450.0,5.35035564]
[1625312388588,5.20051102,34451.0,34450.0,4.8081302]
[1625312388890,5.25951102,34451.0,34450.0,4.8081302]
[1625312389792,5.31851102,34451.0,34450.0,4.8081302]
[1625312389891,5.33058596,34451.0,34450.0,4.8081302]
[1625312389992,5.33058596,34451.0,34450.0,2.2203447]
[1625312390144,5.33058596,34451.0,34450.0,1.9992447]
[1625312390243,6.85965978,34451.0,34449.0,0.68747939]
[1625312390542,6.85965978,34451.0,34447.0,0.92148742]
[1625312390642,0.01207539,34450.0,34447.0,0.92148742]
[1625312390742,0.07107539,34450.0,34447.0,0.92148742]
[1625312390893,0.24057544,34448.0,34447.0,0.92148742]
[1625312390995,0.35857544,34448.0,34447.0,0.92148742]
[1625312391143,0.35857544,34448.0,34447.0,0.00548106]
[1625312391493,0.35857544,34448.0,34444.0,0.00548106]
[1625312391694,4.92720892,34448.0,34444.0,0.00548106]
[1625312392047,4.92720892,34448.0,34443.0,0.00547777]
[1625312392244,4.92720892,34448.0,34443.0,0.34349239]
[1625312392245,2.87755141,34445.0,34443.0,0.34349239]
[1625312392345,2.93655141,34445.0,34443.0,0.34349239]
[1625312392543,2.93655141,34445.0,34443.0,0.34897009]
[1625312392794,2.93655141,34445.0,34444.0,0.0054777]
[1625312392895,0.54015088,34445.0,34444.0,0.0054777]
[1625312393144,0.59915088,34445.0,34444.0,0.0054777]
[1625312393344,0.59915088,34445.0,34443.0,0.00547801]
[1625312393797,3.47429118,34445.0,34443.0,0.00547801]
[1625312394146,3.47429118,34445.0,34441.0,0.00547817]
[1625312394650,2.87341488,34444.0,34441.0,0.00547817]
[1625312394747,3.18234488,34444.0,34441.0,0.00547817]
[1625312394849,0.24057544,34442.0,34441.0,0.00547817]
[1625312394955,0.29957544,34442.0,34439.0,0.00547817]
[1625312395047,0.35857544,34442.0,34439.0,0.00547817]
[1625312395550,1.70954109,34442.0,34439.0,0.00547817]
[1625312395648,3.22935634,34442.0,34439.0,0.00547817]
[1625312396099,1.35081355,34440.0,34439.0,0.00547817]
[1625312396297,1.46881355,34440.0,34439.0,0.00547817]
[1625312396598,1.46881355,34440.0,34438.0,0.00547817]
[1625312396798,1.46881355,34440.0,34439.0,0.00547823]
[1625312396900,1.70938899,34440.0,34439.0,0.00547823]
[1625312397000,0.35857544,34440.0,34439.0,0.00547823]
[1625312397151,0.35857544,34440.0,34438.0,0.00547823]
[1625312397399,0.35857544,34440.0,34439.0,0.00547823]
[1625312397599,0.35857544,34440.0,34438.0,0.00547819]
[1625312397699,1.70739134,34440.0,34438.0,0.00547819]
[1625312398199,1.34877992,34439.0,34438.0,0.00547819]
[1625312398300,1.40777992,34439.0,34438.0,0.00547819]
[1625312398401,1.46677992,34439.0,34438.0,0.00547819]
[1625312398653,1.46677992,34439.0,34437.0,0.34303705]
[1625312398755,1.46677992,34439.0,34434.0,0.6355409]
[1625312398903,0.48115088,34435.0,34434.0,0.6355409]
[1625312399004,0.80387088,34435.0,34434.0,0.3426409]
[1625312399206,0.80387088,34435.0,34434.0,0.34811932]
[1625312399858,0.74487088,34435.0,34434.0,0.34811932]
[1625312400060,2.09115224,34435.0,34434.0,0.00547842]
[1625312400157,1.82743224,34435.0,34434.0,0.00547842]
[1625312400258,1.88643224,34435.0,34434.0,0.00547842]
[1625312400357,1.82743224,34435.0,34434.0,0.00547842]
[1625312400458,0.48115088,34435.0,34434.0,0.00547842]
[1625312400557,0.48115088,34435.0,34433.0,0.34263971]
[1625312400558,0.48115088,34435.0,34433.0,0.34811844]
[1625312400708,0.54015088,34435.0,34433.0,0.34811844]
[1625312400808,0.48115088,34435.0,34434.0,0.00547873]
[1625312401061,0.54015088,34435.0,34434.0,0.00547873]
[1625312401309,0.54015088,34435.0,34434.0,0.51943267]
[1625312401508,0.48115088,34435.0,34434.0,0.51943267]
[1625312401912,0.48115088,34435.0,34434.0,0.00547873]
[1625312402413,0.48115088,34435.0,34431.0,0.00547844]
[1625312402614,0.54015088,34435.0,34431.0,0.06447844]
[1625312402714,0.48115088,34435.0,34431.0,0.06447844]
[1625312402814,0.33612626,34434.0,34431.0,0.06447844]
[1625312402917,0.24057544,34432.0,34431.0,0.059]
[1625312403216,0.24057544,34432.0,34431.0,0.06447837]
[1625312406977,0.24057544,34432.0,34431.0,0.54562925]
[1625312407081,0.24057544,34432.0,34431.0,0.60462925]
[1625312407177,0.24057544,34432.0,34431.0,1.97358456]
[1625312407534,0.24057544,34432.0,34431.0,3.51357032]
[1625312408129,0.24057544,34432.0,34431.0,3.59947032]
[1625312408680,0.48115088,34435.0,34431.0,3.59947032]
[1625312408829,0.24057544,34440.0,34431.0,3.59947032]
[1625312408929,0.24057544,34440.0,34439.0,0.48115088]
[1625312409029,0.24057544,34440.0,34439.0,0.70813088]
[1625312409229,0.24057544,34440.0,34439.0,0.76713088]
[1625312409331,0.24057544,34440.0,34439.0,0.77260793]
[1625312410888,0.24057544,34440.0,34439.0,1.97012069]
[1625312411339,0.24057544,34440.0,34439.0,0.77260793]
[1625312412994,0.24057544,34440.0,34439.0,1.97011335]
[1625312413941,0.24057544,34440.0,34439.0,0.77260793]
[1625312415345,0.24057544,34440.0,34439.0,0.83160793]
[1625312415997,0.24057544,34440.0,34439.0,3.397784]
[1625312417201,0.16812343,34446.0,34439.0,3.397784]
[1625312417651,0.16812343,34446.0,34440.0,0.00546624]
[1625312417851,0.16812343,34446.0,34440.0,0.12346624]
[1625312417952,0.16812343,34446.0,34440.0,0.118]
[1625312418052,0.16812343,34446.0,34443.0,1.19754317]
[1625312418154,0.16812343,34446.0,34443.0,1.25654317]
[1625312418453,0.16812343,34446.0,34444.0,0.00546626]
[1625312418604,0.16812343,34446.0,34444.0,0.06446626]
[1625312418854,0.50422714,34446.0,34444.0,0.06446626]
[1625312418955,0.50422714,34446.0,34445.0,0.0054662]
[1625312419104,0.50422714,34446.0,34445.0,0.30504164]
[1625312419553,0.16812343,34446.0,34445.0,0.30504164]
[1625312420054,0.50430185,34446.0,34445.0,0.30504164]
[1625312420607,0.24057544,34447.0,34445.0,1.50253662]
[1625312420906,0.24057544,34447.0,34446.0,2.22377355]
[1625312421006,0.24057544,34447.0,34446.0,2.52746355]
[1625312421106,0.24057544,34447.0,34446.0,2.591929]
[1625312423617,0.24057544,34447.0,34446.0,1.39451247]
[1625312423618,0.74505961,34447.0,34446.0,1.39451247]
[1625312424117,0.5768422,34447.0,34446.0,0.36815545]
[1625312425772,0.24057544,34447.0,34446.0,0.36815545]
[1625312426373,0.24057544,34447.0,34446.0,0.71037556]
[1625312426875,0.24057544,34447.0,34446.0,0.36815545]
[1625312427072,0.24057544,34447.0,34446.0,0.30915545]
[1625312427273,0.24057544,34447.0,34446.0,0.65138348]
[1625312428731,0.24057544,34447.0,34446.0,0.30915545]
[1625312430782,0.24057544,34447.0,34446.0,0.36815545]
[1625312431032,0.24057544,34447.0,34446.0,0.30915545]
[1625312431536,0.24057544,34447.0,34446.0,0.36815545]
[1625312431633,0.24057544,34447.0,34446.0,0.30915545]
[1625312431931,0.24057544,34447.0,34446.0,0.36815545]
[1625312432032,0.24057544,34447.0,34446.0,0.30915545]
[1625312432132,0.24057544,34447.0,34446.0,0.36815545]
[1625312432484,0.24057544,34447.0,34446.0,0.30915545]
[1625312432684,0.24057544,34447.0,34446.0,0.36815545]
[1625312433240,0.24057544,34447.0,34446.0,0.30915545]
[1625312435394,0.24057544,34447.0,34446.0,0.00546545]
[1625312436245,1.24923192,34447.0,34446.0,0.34783332]
[1625312436797,1.24923192,34447.0,34446.0,0.51901941]
[1625312437347,1.24923192,34447.0,34446.0,0.26224758]
[1625312438047,1.24923192,34447.0,34446.0,0.60465979]
[1625312439151,2.42557651,34447.0,34446.0,0.09106149]
[1625312445417,2.42557651,34447.0,34446.0,0.00546545]
[1625312446414,3.77044768,34447.0,34446.0,0.00546545]
[1625312446514,3.77044768,34447.0,34446.0,0.25496545]
[1625312446715,2.42557651,34447.0,34446.0,0.34061839]
[1625312447614,3.77067324,34447.0,34446.0,0.34061839]
[1625312450571,3.5300978,34447.0,34446.0,0.34061839]
[1625312450682,3.5300978,34447.0,34446.0,0.39961839]
[1625312450874,3.1971978,34447.0,34446.0,0.39961839]
[1625312450973,2.8440978,34447.0,34446.0,0.45861839]
[1625312451072,2.6117978,34447.0,34446.0,0.45861839]
[1625312451173,0.76386169,34447.0,34446.0,2.0864269]
[1625312451278,0.76386169,34447.0,34446.0,2.32700234]
[1625312451474,0.67786169,34447.0,34446.0,2.32700234]
[1625312451824,0.33701871,34447.0,34446.0,3.52624109]
[1625312452375,0.33701871,34447.0,34446.0,4.89676885]
[1625312452376,0.25308133,34447.0,34446.0,4.89676885]
[1625312452878,0.25308133,34447.0,34446.0,4.90537037]
[1625312453177,0.25308133,34447.0,34446.0,4.89676885]
[1625312453977,0.59028421,34448.0,34446.0,4.90537023]
[1625312454328,0.0844306,34448.0,34447.0,3.25470252]
[1625312454429,0.0844306,34448.0,34447.0,3.2601728]
[1625312454530,0.0844306,34448.0,34447.0,3.3781728]
[1625312454831,0.25317587,34448.0,34447.0,3.3191728]
[1625312455331,0.25317587,34448.0,34447.0,3.3781728]
[1625312455432,0.67404558,34448.0,34447.0,0.80867081]
[1625312456282,0.67404558,34448.0,34447.0,2.00796541]
[1625312456283,0.33721344,34448.0,34447.0,2.00796541]
[1625312456733,0.67425837,34449.0,34447.0,2.00796541]
[1625312457033,0.67425837,34449.0,34447.0,1.94896541]
[1625312457134,0.67425837,34449.0,34448.0,0.00547051]
[1625312457284,0.67425837,34449.0,34448.0,0.06447051]
[1625312457386,0.67425837,34449.0,34448.0,0.00547051]
[1625312457485,1.42050642,34450.0,34448.0,0.69093835]
[1625312457684,1.42050642,34450.0,34448.0,0.74993835]
[1625312457785,0.24057544,34450.0,34449.0,0.6854602]
[1625312457887,0.24057544,34450.0,34449.0,0.69093069]
[1625312457986,0.24057544,34450.0,34449.0,0.74993069]
[1625312458137,2.09492671,34450.0,34449.0,0.74993069]
[1625312458788,0.91493096,34450.0,34449.0,0.74993069]
[1625312458890,0.91493096,34450.0,34449.0,0.69093069]
[1625312458988,0.91493096,34450.0,34449.0,0.74993069]
[1625312459290,2.09466564,34450.0,34449.0,0.99050613]
[1625312460145,0.91493096,34450.0,34449.0,2.1904988]
[1625312460495,0.91493096,34450.0,34449.0,0.99050613]
[1625312460898,0.91493096,34450.0,34449.0,2.19048365]
[1625312461497,0.91493096,34450.0,34449.0,0.99050613]
[1625312462551,0.91493096,34450.0,34449.0,2.19092482]
[1625312465709,2.09585507,34450.0,34449.0,2.19092482]
[1625312467363,2.09585507,34450.0,34449.0,3.56419924]
[1625312467863,0.91493096,34450.0,34449.0,3.56419924]
[1625312468966,2.09655679,34450.0,34449.0,3.56419924]
[1625312470321,0.91493096,34450.0,34449.0,3.56419924]
[1625312472422,0.24057544,34450.0,34449.0,3.56419924]
[1625312472775,0.91611239,34450.0,34449.0,3.56419924]
[1625312480243,0.91611239,34450.0,34449.0,3.62319924]
[1625312480643,1.42274616,34450.0,34449.0,4.13807428]
[1625312482246,2.43351532,34450.0,34449.0,5.16780648]
[1625312483351,2.43351532,34450.0,34449.0,3.79453206]
[1625312483701,2.43351532,34450.0,34449.0,5.16742022]
[1625312484101,2.43351532,34450.0,34449.0,5.17602084]
[1625312484250,2.43351532,34450.0,34449.0,5.11702084]
[1625312484354,2.43351532,34450.0,34449.0,5.17602084]
[1625312484656,0.74720921,34450.0,34449.0,5.17602084]
[1625312485608,1.08459358,34450.0,34449.0,5.17602084]
[1625312486559,0.83120025,34450.0,34449.0,5.17602084]
[1625312487109,1.08386743,34450.0,34449.0,5.17602084]
[1625312489366,0.57795981,34450.0,34449.0,5.17602084]
[1625312489817,1.08361978,34450.0,34449.0,5.17602084]
[1625312490266,0.74623541,34450.0,34449.0,5.17602084]
[1625312491069,0.49373846,34450.0,34449.0,5.17602084]
[1625312492271,0.3250193,34450.0,34449.0,5.17602084]
[1625312492822,0.24057544,34450.0,34449.0,6.71950272]
[1625312494927,0.24057544,34450.0,34449.0,7.21950272]
[1625312498433,0.24057544,34450.0,34449.0,6.71950272]
[1625312499237,0.08447334,34454.0,34449.0,7.21950272]
[1625312499437,0.08447334,34454.0,34450.0,0.01406414]
[1625312499637,0.08447334,34454.0,34453.0,0.48115088]
[1625312499739,0.08469943,34455.0,34453.0,5.51061964]
[1625312499841,0.08469943,34455.0,34453.0,5.62861964]
[1625312500039,0.08469943,34455.0,34453.0,5.64268326]
[1625312500190,1.42433879,34457.0,34453.0,5.64268326]
[1625312500191,0.24057544,34457.0,34454.0,6.33939274]
[1625312500289,0.24057544,34457.0,34454.0,6.4124563]
[1625312500390,0.24057544,34457.0,34454.0,6.4714563]
[1625312500539,0.24057544,34457.0,34456.0,4.79737857]
[1625312500640,0.24057544,34457.0,34456.0,4.85637857]
[1625312500740,0.24057544,34457.0,34456.0,4.91537857]
[1625312501042,0.24057544,34457.0,34456.0,4.92084239]
[1625312501593,0.32534001,34457.0,34456.0,4.92084239]
[1625312501692,0.32534001,34457.0,34456.0,5.00724239]
[1625312502143,0.24057544,34457.0,34456.0,5.00724239]
[1625312504700,0.24057544,34457.0,34456.0,5.50724239]
[1625312505356,0.24057544,34457.0,34456.0,7.04869511]
[1625312506209,0.24057544,34457.0,34456.0,5.50724239]
[1625312513720,0.24057544,34457.0,34456.0,5.00724239]
[1625312513823,0.43533544,34457.0,34456.0,4.86184239]
[1625312514772,2.63050542,34457.0,34456.0,2.29181816]
[1625312514872,2.43574542,34457.0,34456.0,2.35081816]
[1625312515225,2.43574542,34457.0,34456.0,1.32280847]
[1625312516273,2.43574542,34457.0,34456.0,2.35034232]
[1625312516673,0.74720507,34457.0,34456.0,3.54912422]
[1625312517028,2.43540292,34457.0,34456.0,2.35034232]
[1625312517624,2.43540292,34457.0,34456.0,2.57559232]
[1625312518026,1.42251797,34457.0,34456.0,2.57559232]
[1625312518929,1.42251797,34457.0,34456.0,3.77451311]
[1625312519880,2.43666969,34457.0,34456.0,2.57559232]
[1625312521934,2.43666969,34457.0,34456.0,2.35034232]
[1625312523890,3.61829643,34457.0,34456.0,1.32280847]
[1625312524393,3.61829643,34457.0,34456.0,2.35080298]
[1625312525496,3.61829643,34457.0,34456.0,1.32280847]
[1625312526196,3.61829643,34457.0,34456.0,2.35096751]
[1625312529351,3.61829643,34457.0,34456.0,1.32280847]
[1625312530761,3.61829643,34457.0,34456.0,2.35124601]
[1625312536573,4.9695098,34457.0,34456.0,1.32280847]
[1625312537271,4.9695098,34457.0,34456.0,1.26380847]
[1625312537424,4.9695098,34457.0,34456.0,1.32280847]
[1625312537623,4.9695098,34457.0,34456.0,0.63746867]
[1625312541527,4.9695098,34457.0,34456.0,1.3234353]
[1625312542779,5.1926998,34457.0,34456.0,1.2054353]
[1625312542978,5.2516998,34457.0,34456.0,1.2054353]
[1625312543181,5.1926998,34457.0,34456.0,1.2054353]
[1625312543281,5.2516998,34457.0,34456.0,1.2054353]
[1625312543384,5.1926998,34457.0,34456.0,0.0912253]
[1625312543932,6.70882444,34457.0,34456.0,0.00546382]
[1625312546889,6.70882444,34457.0,34455.0,0.00546641]
[1625312547441,4.71286505,34456.0,34455.0,0.00546641]
[1625312549098,4.71286505,34456.0,34455.0,0.09121287]
[1625312549195,4.95900505,34456.0,34455.0,0.09121287]
[1625312549696,4.95900505,34456.0,34455.0,0.00546641]
[1625312558963,4.95900505,34456.0,34450.0,0.87666566]
[1625312559063,5.01800505,34456.0,34450.0,0.87666566]
[1625312559163,5.07700505,34456.0,34450.0,0.87666566]
[1625312559264,5.07700505,34456.0,34451.0,0.00545989]
[1625312559817,1.51283277,34452.0,34451.0,0.00545989]
[1625312559915,1.63083277,34452.0,34451.0,0.00545989]
[1625312560019,1.63083277,34452.0,34448.0,0.00546016]
[1625312560265,0.72172632,34449.0,34441.0,2.180928]
[1625312560364,1.06018632,34449.0,34441.0,2.180928]
[1625312560565,1.06018632,34449.0,34448.0,0.00546023]
[1625312560816,1.06018632,34449.0,34442.0,0.00546026]
[1625312560967,1.17537092,34445.0,34442.0,0.00546026]
[1625312562071,1.17532156,34446.0,34442.0,1.20488029]